bitfinex-derivatives/quotes_BNBF0:USTF0_20241230
["timestamp","ask_amount","ask_price","bid_price","bid_amount"]
[1735518019187,1.07500518,696.39,694.24,0.28808481]
[1735518020081,1.50081941,703.64,694.24,0.28808481]
[1735518020082,1.07500518,697.6,695.08,1.07073941]
[1735518020281,0.26435858,697.59,695.08,1.07073941]
[1735518020586,0.26435858,697.58,695.08,1.07073941]
[1735518020786,0.26435858,697.57,695.08,1.07073941]
[1735518020981,1.07500518,697.37,694.8,1.07073941]
[1735518021183,0.26435858,697.36,694.8,1.07073941]
[1735518021386,0.28684527,697.24,694.8,1.07073941]
[1735518021586,0.26435858,697.23,694.8,1.07073941]
[1735518022289,0.26435858,697.23,694.57,1.07073941]
[1735518022588,0.2644228,697.22,694.57,1.07073941]
[1735518022888,0.2644228,697.21,694.57,1.07073941]
[1735518023190,0.2644228,697.2,694.48,1.07073941]
[1735518023383,0.2644228,697.19,694.48,1.07073941]
[1735518023586,0.2644228,697.18,694.48,1.07073941]
[1735518023784,0.2644228,697.17,694.48,1.07073941]
[1735518023987,0.2644228,697.16,694.48,1.07073941]
[1735518024189,0.2644228,697.15,694.18,1.07073941]
[1735518024490,0.26442586,697.14,694.18,1.07073941]
[1735518024687,0.26442586,697.13,694.18,1.07073941]
[1735518024889,0.28684527,697.24,694.18,1.07073941]
[1735518025089,0.26442889,697.23,694.18,1.07073941]
[1735518025290,0.26442889,697.23,694.17,1.07073941]
[1735518026289,0.26442889,697.23,693.08,2.18609296]
[1735518026290,0.26442889,697.23,694.16,1.07073941]
[1735518027393,0.26443375,697.22,694.16,1.07073941]
[1735518027593,0.26443375,697.21,694.16,1.07073941]
[1735518027794,0.26443375,697.2,694.16,1.07073941]
[1735518027994,0.26443375,697.19,694.13,1.07073941]
[1735518028193,0.26443375,697.18,694.13,1.07073941]
[1735518028393,0.26443375,697.17,694.13,1.07073941]
[1735518028594,0.26443375,697.16,694.13,1.07073941]
[1735518028793,0.26443375,697.15,694.13,1.07073941]
[1735518028989,0.26443375,697.14,694.13,1.07073941]
[1735518029190,0.26443375,697.13,694.11,1.07073941]
[1735518029389,0.26443375,697.12,694.11,1.07073941]
[1735518029590,0.26443375,697.11,694.11,1.07073941]
[1735518029791,0.28684527,697.24,694.11,1.07073941]
[1735518029991,0.26443717,697.1,694.08,1.07073941]
[1735518030195,0.26443717,697.09,694.08,1.07073941]
[1735518030388,0.26443717,697.08,694.08,1.07073941]
[1735518030593,0.26443717,697.07,694.08,1.07073941]
[1735518030790,0.26443717,697.06,694.08,1.07073941]
[1735518031096,0.26443717,697.05,694.07,1.07073941]
[1735518031397,0.2869811,696.91,694.07,1.07073941]
[1735518032497,0.2869811,696.91,693.91,6.25132162]
[1735518032498,0.2869811,696.91,694.09,1.07073941]
[1735518033093,0.26442511,696.9,694.09,1.07073941]
[1735518033295,0.2869811,696.91,694.09,1.07073941]
[1735518033598,0.2869811,696.91,694.08,1.07073941]
[1735518034892,0.26440127,696.9,694.08,1.07073941]
[1735518035197,0.26440127,696.9,694.35,1.07073941]
[1735518036393,0.26440127,696.9,694.28,1.07073941]
[1735518036998,0.26440127,696.9,694.28,4.55866287]
[1735518037198,0.2869811,696.91,694.29,6.25132162]
[1735518037396,0.26442045,696.9,694.3,3.48792346]
[1735518037594,0.26442045,696.9,694.3,6.25132162]
[1735518037796,0.26442045,696.9,694.31,6.25132162]
[1735518038099,0.26442045,696.9,694.32,3.48723247]
[1735518038398,0.26442045,696.9,687.35,8.51824258]
[1735518038399,0.26442045,696.9,694.44,0.28800184]
[1735518039600,0.2869811,696.91,694.44,0.28800184]
[1735518039799,0.26442297,696.9,694.44,0.28800184]
[1735518040000,0.28699345,696.88,694.44,0.28800184]
[1735518040301,0.26442297,696.87,694.44,0.28800184]
[1735518042303,0.28700581,696.85,694.44,0.28800184]
[1735518042501,0.26442028,696.84,694.44,0.28800184]
[1735518042694,0.26442706,696.83,694.44,0.28800184]
[1735518042897,0.28702228,696.81,694.44,0.28800184]
[1735518043100,0.28702228,696.81,694.44,3.77510932]
[1735518043101,0.26442706,696.8,694.44,3.77510932]
[1735518043301,0.26442706,696.8,694.44,2.11723272]
[1735518043596,0.26442706,696.8,694.44,0.28800184]
[1735518044598,0.26442645,696.79,694.44,0.28800184]
[1735518044795,0.26442645,696.78,694.44,0.28800184]
[1735518044998,0.26442645,696.77,694.44,0.28800184]
[1735518045197,0.26442645,696.76,694.44,0.28800184]
[1735518045502,0.28705112,696.74,694.44,0.28800184]
[1735518045701,0.26442645,696.73,694.44,0.28800184]
[1735518046104,0.26442645,696.73,694.44,3.77436165]
[1735518046303,0.26442645,696.73,694.44,6.53511729]
[1735518046502,0.26442645,696.73,694.46,1.07073941]
[1735518046704,0.26442645,696.73,694.46,7.31785486]
[1735518046901,0.26442645,696.73,694.48,0.28798525]
[1735518047102,0.28705112,696.74,694.48,0.28798525]
[1735518047302,0.26445218,696.73,694.48,0.28798525]
[1735518047599,0.26445218,696.73,694.5,1.07073941]
[1735518048700,0.26445218,696.73,694.48,0.28798525]
[1735518052004,0.26454663,696.72,694.48,0.28798525]
[1735518052206,0.26454663,696.71,694.48,0.28798525]
[1735518052402,0.26454663,696.7,694.48,0.28798525]
[1735518052611,0.26454663,696.69,694.48,0.28798525]
[1735518052903,0.26454663,696.68,694.48,0.28798525]
[1735518053110,0.26454663,696.67,694.48,0.28798525]
[1735518053310,0.26454663,696.66,694.48,0.28798525]
[1735518053508,0.26454663,696.65,694.48,0.28798525]
[1735518053703,0.26454663,696.64,694.48,0.28798525]
[1735518053903,0.26454663,696.63,694.48,0.28798525]
[1735518054105,0.26454663,696.62,694.48,0.28798525]
[1735518054308,0.28705112,696.74,694.48,0.28798525]
[1735518054508,0.26457346,696.73,694.48,0.28798525]
[1735518059516,0.26454348,696.72,694.48,0.28798525]
[1735518059709,0.26454348,696.71,694.48,0.28798525]
[1735518059912,0.26454348,696.7,694.48,0.28798525]
[1735518060114,0.26454348,696.69,694.48,0.28798525]
[1735518060314,0.26454348,696.68,694.48,0.28798525]
[1735518060515,0.26454348,696.67,694.48,0.28798525]
[1735518060710,0.28705112,696.74,694.48,0.28798525]
[1735518060711,0.26454348,696.66,694.48,0.28798525]
[1735518061017,0.26454348,696.65,694.48,0.28798525]
[1735518061212,0.26454348,696.64,694.48,0.28798525]
[1735518061409,0.26454348,696.63,694.48,0.28798525]
[1735518061610,0.26454348,696.62,694.48,0.28798525]
[1735518061812,0.26454348,696.61,694.48,0.28798525]
[1735518062011,0.26454348,696.6,694.48,0.28798525]
[1735518062217,1.07500518,696.45,694.48,0.28798525]
[1735518062412,0.26454348,696.44,694.48,0.28798525]
[1735518062614,0.26454348,696.43,694.48,0.28798525]
[1735518062816,0.26454348,696.42,694.48,0.28798525]
[1735518063118,0.26454348,696.41,694.48,0.28798525]
[1735518063321,1.07500518,696.5,694.48,0.28798525]
[1735518063518,0.26470379,696.49,694.48,0.28798525]
[1735518063713,0.26470379,696.48,694.48,0.28798525]
[1735518063918,0.26470379,696.47,694.48,0.28798525]
[1735518064119,0.26470379,696.46,694.48,0.28798525]
[1735518064418,0.26470379,696.45,694.48,0.28798525]
[1735518064624,0.26470379,696.44,694.48,0.28798525]
[1735518064820,0.26470379,696.43,694.48,0.28798525]
[1735518065021,0.26470379,696.42,694.48,0.28798525]
[1735518065221,0.26470379,696.41,694.48,0.28798525]
[1735518065419,0.26470379,696.4,694.48,0.28798525]
[1735518065620,0.26470379,696.39,694.48,0.28798525]
[1735518065820,0.26470379,696.63,694.48,0.28798525]
[1735518066521,0.26470379,696.62,694.48,0.28798525]
[1735518066718,0.26470379,696.61,694.48,0.28798525]
[1735518066918,0.26470379,696.6,694.48,0.28798525]
[1735518067124,0.26470379,696.59,694.48,0.28798525]
[1735518067318,0.26470379,696.58,694.48,0.28798525]
[1735518067518,0.26470379,696.57,694.48,0.28798525]
[1735518067723,0.26470379,696.56,694.48,0.28798525]
[1735518067924,0.26470379,696.55,694.48,0.28798525]
[1735518068126,0.26470379,696.54,694.48,0.28798525]
[1735518068327,0.26466922,696.53,694.48,0.28798525]
[1735518068519,0.26466922,696.52,694.48,0.28798525]
[1735518068722,0.26466922,696.51,694.48,0.28798525]
[1735518068925,0.26466922,696.5,694.48,0.28798525]
[1735518069123,0.26466922,696.49,694.48,0.28798525]
[1735518069428,0.28719126,696.4,694.48,0.28798525]
[1735518069629,0.26466922,696.39,694.48,0.28798525]
[1735518070627,0.26468563,696.38,694.48,0.28798525]
[1735518070820,0.26468563,696.39,694.48,0.28798525]
[1735518071021,0.26468563,696.38,694.48,0.28798525]
[1735518071227,0.26468563,696.37,694.48,0.28798525]
[1735518071426,0.26468563,696.36,694.48,0.28798525]
[1735518071627,0.26468563,696.35,694.48,0.28798525]
[1735518071827,0.26468563,696.34,694.48,0.28798525]
[1735518072029,0.55190576,696.33,694.48,0.28798525]
[1735518072331,0.26468563,696.32,694.48,0.28798525]
[1735518073128,0.26466076,696.31,694.48,0.28798525]
[1735518073330,0.26466076,696.32,694.48,0.28798525]
[1735518073631,0.26466076,696.31,694.48,0.28798525]
[1735518073825,0.26466076,696.32,694.48,0.28798525]
[1735518074131,0.26466076,696.31,694.48,0.28798525]
[1735518074325,0.26466076,696.3,694.48,0.28798525]
[1735518074528,0.26466076,696.29,694.48,0.28798525]
[1735518074726,0.26466076,696.28,694.48,0.28798525]
[1735518074923,0.26466076,696.27,694.48,0.28798525]
[1735518075123,0.26466076,696.26,694.48,0.28798525]
[1735518075324,0.26466076,696.25,694.48,0.28798525]
[1735518075525,0.26466076,696.32,694.48,0.28798525]
[1735518075726,0.26466076,696.31,694.48,0.28798525]
[1735518075928,0.26466076,696.3,694.48,0.28798525]
[1735518076130,0.28724076,696.28,694.48,0.28798525]
[1735518076332,0.26466076,696.27,694.48,0.28798525]
[1735518078635,0.28725314,696.25,694.48,0.28798525]
[1735518078834,0.26466076,696.24,694.48,0.28798525]
[1735518079033,0.28726551,696.22,694.48,0.28798525]
[1735518079234,0.26466076,696.21,694.48,0.28798525]
[1735518080431,0.26463836,696.2,694.48,0.28798525]
[1735518080632,0.26463836,696.19,694.48,0.28798525]
[1735518080836,0.26463836,696.18,694.48,0.28798525]
[1735518081130,0.26463836,696.17,694.48,0.28798525]
[1735518081436,0.28726551,696.22,694.48,0.28798525]
[1735518081437,0.26463836,696.16,694.48,0.28798525]
[1735518081636,0.55193276,696.15,694.48,0.28798525]
[1735518081834,0.26463836,696.14,694.48,0.28798525]
[1735518083432,0.28730678,696.12,694.48,0.28798525]
[1735518084438,0.26462142,696.11,694.48,0.28798525]
[1735518084637,0.26462441,696.1,694.48,0.28798525]
[1735518084837,0.26462441,696.09,694.48,0.28798525]
[1735518085138,0.26462441,696.08,694.48,0.28798525]
[1735518085432,0.26462441,696.07,694.48,0.28798525]
[1735518085637,0.26462441,696.11,694.48,0.28798525]
[1735518085837,0.26462441,696.1,694.48,0.28798525]
[1735518086034,0.26462441,696.09,694.48,0.28798525]
[1735518086241,0.26462441,696.08,694.48,0.28798525]
[1735518086434,0.26462441,696.07,694.48,0.28798525]
[1735518086638,0.26462441,696.06,694.48,0.28798525]
[1735518086835,0.26462441,696.05,694.48,0.28798525]
[1735518087134,0.28730678,696.12,694.48,0.28798525]
[1735518087135,0.26462441,696.04,694.48,0.28798525]
[1735518087334,0.26462441,696.03,694.48,0.28798525]
[1735518087535,0.26462441,696.02,694.48,0.28798525]
[1735518087735,0.26462441,696.01,694.48,0.28798525]
[1735518087939,0.26468801,696.0,694.48,0.28798525]
[1735518088240,0.26468801,695.99,694.48,0.28798525]
[1735518088442,0.26468801,695.98,694.48,0.28798525]
[1735518088641,0.26468801,695.97,694.48,0.28798525]
[1735518088841,0.26468801,695.96,694.48,0.28798525]
[1735518089043,0.26468801,695.95,694.48,0.28798525]
[1735518089244,0.26468801,695.94,694.48,0.28798525]
[1735518089443,0.26468801,695.93,694.16,1.06391799]
[1735518089643,0.26468801,695.92,694.16,1.06391799]
[1735518089836,0.26468801,695.91,693.91,1.06391799]
[1735518090042,0.26468801,695.9,693.91,1.06391799]
[1735518090243,0.28730678,696.12,693.93,0.2882135]
[1735518090442,0.2647727,696.11,693.93,0.2882135]
[1735518091046,1.06604491,696.06,693.93,0.2882135]
[1735518091244,0.2647727,696.05,693.93,0.2882135]
[1735518092348,0.2647727,696.04,693.93,0.2882135]
[1735518092645,0.2647727,696.03,693.93,0.2882135]
[1735518092842,0.2647727,696.09,693.93,0.2882135]
[1735518093045,0.2647727,696.08,693.93,0.2882135]
[1735518093242,0.2647727,696.07,694.2,1.06391799]
[1735518093547,0.2647727,696.06,694.2,1.06391799]
[1735518093747,0.28730678,696.12,694.2,1.06391799]
[1735518093748,0.2647727,696.05,694.2,1.06391799]
[1735518094047,0.2647727,696.04,694.18,1.06391799]
[1735518094248,0.2647727,696.03,694.18,1.06391799]
[1735518094441,0.2647727,696.02,694.18,1.06391799]
[1735518094641,0.2647727,696.01,694.18,1.06391799]
[1735518094847,0.2647727,696.0,694.18,1.06391799]
[1735518095041,0.2647727,695.99,694.22,1.06391799]
[1735518095247,0.52943926,695.98,694.22,1.06391799]
[1735518095447,0.26472329,695.97,694.22,1.06391799]
[1735518096249,0.26472329,695.97,694.06,1.06391799]
[1735518097445,0.26472329,695.97,693.93,0.2882135]
[1735518099146,0.26472329,695.96,693.93,0.2882135]
[1735518099347,0.26472329,695.95,693.93,0.2882135]
[1735518099548,0.26472329,695.94,693.93,0.2882135]
[1735518099749,0.26472329,695.93,693.93,0.2882135]
[1735518100049,0.26471597,695.98,693.93,0.2882135]
[1735518100250,0.26480767,695.92,693.93,0.2882135]
[1735518100450,0.26471597,695.98,693.93,0.2882135]
[1735518100750,0.26481015,695.97,693.93,0.2882135]
[1735518100945,1.06604491,695.83,693.94,1.06391799]
[1735518101151,0.26481015,695.82,693.94,1.06391799]
[1735518101350,0.26481015,695.81,693.94,1.06391799]
[1735518101549,0.26481015,695.8,693.94,1.06391799]
[1735518101744,0.26481015,695.79,693.94,1.06391799]
[1735518101948,0.26481015,695.78,693.94,1.06391799]
[1735518102149,0.26481015,695.78,693.93,0.2882135]
[1735518102150,0.26481015,695.77,693.93,1.35213149]
[1735518102356,1.06604491,695.83,693.93,1.35213149]
[1735518102357,0.26481015,695.76,693.93,1.35213149]
[1735518102553,0.26481015,695.75,693.93,4.84885614]
[1735518102850,1.06604491,695.83,693.93,1.35213149]
[1735518103052,0.2648115,695.82,693.93,1.35213149]
[1735518103255,0.2648115,695.82,693.93,0.2882135]
[1735518103446,0.2648115,695.81,693.93,0.2882135]
[1735518103753,0.28744305,695.79,693.93,0.2882135]
[1735518104046,0.2648115,695.78,693.93,0.2882135]
[1735518104849,0.28745544,695.76,693.93,0.2882135]
[1735518105046,0.2648115,695.75,693.93,0.2882135]
[1735518105453,0.28746783,695.73,693.93,0.2882135]
[1735518105653,0.26480467,695.72,693.93,0.2882135]
[1735518106949,0.28748023,695.7,693.93,0.2882135]
[1735518107153,0.26480467,695.69,693.93,0.2882135]
[1735518107856,0.28749263,695.67,693.93,0.2882135]
[1735518108148,0.26479371,695.66,693.93,0.2882135]
[1735518108354,0.28750503,695.64,693.93,0.2882135]
[1735518108554,0.26479371,695.63,693.93,0.2882135]
[1735518108754,0.28751743,695.61,693.93,0.2882135]
[1735518108956,0.26479371,695.6,693.93,0.2882135]
[1735518109147,0.28752983,695.58,693.93,0.2882135]
[1735518109353,0.26479371,695.57,693.93,0.2882135]
[1735518109652,0.28753809,695.56,693.93,0.2882135]
[1735518109854,0.26479371,695.55,693.93,0.2882135]
[1735518110249,0.28754636,695.54,693.93,0.2882135]
[1735518110455,0.26480752,695.53,693.93,0.2882135]
[1735518110654,0.28755463,695.52,693.93,0.2882135]
[1735518110854,0.26480752,695.51,693.93,0.2882135]
[1735518111066,0.2875629,695.5,693.93,0.2882135]
[1735518115855,0.2875629,695.5,694.11,1.06391799]
[1735518117158,0.2875629,695.5,693.93,0.2882135]
[1735518125670,0.2875629,695.5,694.16,1.06391799]
[1735518126569,0.2875629,695.5,694.15,1.06391799]
[1735518127669,0.2875629,695.5,694.16,1.06391799]
[1735518128970,0.2875629,695.5,694.27,1.06391799]
[1735518129970,0.2875629,695.5,694.48,1.06391799]
[1735518131577,0.2875629,695.5,694.4,1.06391799]
[1735518132576,0.2875629,695.5,694.33,1.06391799]
[1735518133675,0.2875629,695.5,694.21,1.06391799]
[1735518134576,0.2875629,695.5,694.2,1.06391799]
[1735518135375,0.2875629,695.5,694.32,1.06391799]
[1735518136277,0.2875629,695.5,694.44,1.06391799]
[1735518137376,0.2875629,695.5,694.37,1.06391799]
[1735518138371,0.2875629,695.5,694.54,1.06391799]
[1735518139375,0.2875629,695.5,694.41,1.06391799]
[1735518140177,0.2875629,695.5,694.28,1.06391799]
[1735518141475,0.2875629,695.5,694.25,1.06391799]
[1735518142371,0.2875629,695.5,694.25,2.90340337]
[1735518142571,0.2875629,695.5,694.31,1.06391799]
[1735518143579,0.2875629,695.5,694.26,1.06391799]
[1735518144872,0.2875629,695.5,694.25,1.06391799]
[1735518146074,0.2875629,695.5,694.18,1.06391799]
[1735518147180,0.2875629,695.5,694.27,1.06391799]
[1735518149377,0.2875629,695.5,694.32,1.06391799]
[1735518150181,0.2875629,695.5,694.31,1.06391799]
[1735518151285,0.2875629,695.5,694.29,1.06391799]
[1735518151785,0.2875629,695.5,694.29,7.3462653]
[1735518151985,0.2875629,695.5,694.3,3.50565255]
[1735518152187,0.2875629,695.5,694.3,6.28234731]
[1735518152389,0.2875629,695.5,694.31,3.50565255]
[1735518152789,0.2875629,695.5,694.32,3.50565255]
[1735518152984,0.2875629,695.5,694.33,1.83867303]
[1735518153184,0.2875629,695.5,694.27,6.28531085]
[1735518153488,0.2875629,695.5,694.28,3.50679831]
[1735518153691,0.2875629,695.5,694.28,6.28531085]
[1735518153887,0.2875629,695.5,694.29,3.50679831]
[1735518154089,0.2875629,695.5,694.3,2.77851254]
[1735518154391,0.2875629,695.5,694.31,3.50679831]
[1735518154585,0.2875629,695.5,694.32,2.77851254]
[1735518154789,0.2875629,695.5,694.33,1.83867303]
[1735518154989,0.2875629,695.5,694.21,2.77851254]
[1735518155185,0.2875629,695.5,694.25,1.06391799]
[1735518156392,0.2875629,695.5,694.07,1.06391799]
[1735518157593,0.2875629,695.5,693.94,1.06391799]
[1735518159696,0.2875629,695.5,693.95,1.06391799]
[1735518161096,0.2875629,695.5,693.87,3.51072731]
[1735518161097,0.2875629,695.5,693.97,1.06391799]
[1735518161993,0.2875629,695.5,694.13,1.06391799]
[1735518163197,0.2875629,695.5,694.11,1.06391799]
[1735518164293,0.2875629,695.5,694.14,1.06391799]
[1735518166800,0.2875629,695.5,694.13,1.06391799]
[1735518167601,0.2875629,695.5,694.02,1.06391799]
[1735518167602,0.2875629,695.5,694.26,1.06391799]
[1735518168495,0.2875629,695.5,693.94,1.06391799]
[1735518169496,0.2875629,695.5,693.93,0.2882135]
[1735518170400,0.2648073,695.49,693.93,0.2882135]
[1735518171200,0.26481035,695.48,693.93,0.2882135]
[1735518171397,0.26481035,695.47,693.98,1.06391799]
[1735518171597,0.2875629,695.5,693.98,1.06391799]
[1735518172201,0.2875629,695.5,693.97,1.06391799]
[1735518173198,0.2875629,695.5,693.57,1.06391799]
[1735518174199,0.2875629,695.5,693.59,1.06391799]
[1735518174504,1.07265679,696.05,693.59,1.06391799]
[1735518174704,0.26480436,696.04,693.59,1.06391799]
[1735518175607,0.26480436,696.04,693.52,1.06391799]
[1735518175808,0.26480436,696.03,693.52,1.06391799]
[1735518176002,0.26480436,696.07,693.52,1.06391799]
[1735518176207,0.26480436,696.06,693.52,1.06391799]
[1735518176407,0.26480436,696.06,686.4,8.57091905]
[1735518176408,0.26480436,696.05,693.47,1.06391799]
[1735518176605,0.26480436,696.04,693.47,1.06391799]
[1735518176802,0.26480436,696.03,693.47,1.06391799]
[1735518177009,0.26480436,696.02,693.47,1.06391799]
[1735518177202,0.26480436,696.01,693.47,1.06391799]
[1735518177407,0.26480436,696.0,693.47,1.06391799]
[1735518177608,0.26480436,695.99,693.48,1.06391799]
[1735518177808,0.26480436,695.98,693.48,1.06391799]
[1735518178110,0.26480436,695.97,693.48,1.06391799]
[1735518178410,0.26480436,695.96,693.48,1.06391799]
[1735518178705,0.26480436,695.95,693.48,1.06391799]
[1735518178911,0.26480436,695.94,693.49,1.06391799]
[1735518179105,0.26480102,695.93,693.49,1.06391799]
[1735518179308,0.26480102,695.92,693.49,1.06391799]
[1735518179504,0.26480102,695.91,693.49,1.06391799]
[1735518179712,1.07265679,696.06,693.49,1.06391799]
[1735518179906,0.26480243,696.05,693.49,1.06391799]
[1735518180109,1.07265679,696.03,693.52,1.06391799]
[1735518180309,0.26480243,696.02,693.52,1.06391799]
[1735518180711,1.07265679,696.03,693.52,1.06391799]
[1735518180912,0.26477,696.02,693.52,1.06391799]
[1735518181609,0.26477,696.02,693.62,1.06391799]
[1735518181808,0.26477,696.01,693.62,1.06391799]
[1735518182014,0.26477,696.0,693.62,1.06391799]
[1735518182213,0.26477,695.99,693.62,1.06391799]
[1735518182415,0.26477,695.98,693.62,1.06391799]
[1735518182614,0.26477,695.97,693.62,1.06391799]
[1735518182915,0.26477803,695.96,693.77,1.06391799]
[1735518183115,0.26477803,695.95,693.77,1.06391799]
[1735518183309,0.26477803,695.94,693.77,1.06391799]
[1735518183513,0.26477803,695.93,693.77,1.06391799]
[1735518183711,0.26477803,695.92,693.77,1.06391799]
[1735518183910,0.62242878,696.75,693.39,2.78261663]
[1735518183911,0.26477803,695.91,693.75,1.06391799]
[1735518184111,0.26477803,695.9,693.75,1.06391799]
[1735518184316,0.26477803,695.89,693.75,1.06391799]
[1735518184513,0.26477803,695.88,693.75,1.06391799]
[1735518184712,0.26477803,695.87,693.75,1.06391799]
[1735518184911,0.26477803,695.86,693.99,1.06391799]
[1735518185118,0.26477803,695.85,693.99,1.06391799]
[1735518185317,1.07265679,695.9,693.99,1.06391799]
[1735518185511,0.26472733,695.89,693.99,1.06391799]
[1735518186117,1.07265679,695.83,694.27,1.06391799]
[1735518186311,0.26472733,695.82,694.27,1.06391799]
[1735518187219,0.26472733,695.82,694.25,1.06391799]
[1735518187418,0.26472733,695.81,694.25,1.06391799]
[1735518187618,0.26472733,695.8,694.25,1.06391799]
[1735518187922,0.26472733,695.79,694.25,1.06391799]
[1735518188111,0.26472733,695.78,694.25,1.06391799]
[1735518188315,0.26472733,695.77,694.25,1.06391799]
[1735518188516,0.26472733,695.76,694.25,1.06391799]
[1735518188711,0.26472733,695.75,694.25,1.06391799]
[1735518188916,0.26472733,695.74,694.25,1.06391799]
[1735518189219,0.26472733,695.73,694.25,1.06391799]
[1735518189421,0.26472733,695.72,694.25,1.06391799]
[1735518189615,0.26472733,695.71,694.28,1.06391799]
[1735518189810,0.26472733,695.7,694.28,1.06391799]
[1735518190118,1.07265679,695.75,694.28,1.06391799]
[1735518190312,0.26473364,695.74,694.28,1.06391799]
[1735518190818,0.26473364,695.74,694.3,0.28805991]
[1735518191419,1.33739043,695.74,694.33,1.06391799]
[1735518191615,0.26473364,695.73,694.34,0.28804332]
[1735518192416,1.33739043,695.73,694.34,0.28804332]
[1735518192620,1.07265679,695.73,694.34,0.28804332]
[1735518193321,1.07265679,695.76,694.36,1.06391799]
[1735518194523,2.17650837,696.37,694.34,0.28804332]
[1735518194524,1.07265679,695.96,694.35,1.06391799]
[1735518194718,0.26465387,695.95,694.37,0.28803087]
[1735518195323,1.07265679,695.96,694.37,0.28803087]
[1735518195324,0.26466142,695.94,694.37,0.28803087]
[1735518195525,0.26466142,695.93,694.37,0.28803087]
[1735518195725,1.07265679,695.98,694.4,1.06391799]
[1735518195925,0.26466068,695.97,694.4,1.06391799]
[1735518196122,0.26466068,695.97,694.42,0.28801013]
[1735518196628,1.07265679,695.98,694.42,0.28801013]
[1735518196926,0.28727377,696.2,694.42,0.28801013]
[1735518196927,1.07265679,696.02,694.42,0.28801013]
[1735518198328,0.28727377,696.2,694.43,1.06391799]
[1735518198329,1.07265679,696.16,694.43,1.06391799]
[1735518198525,0.26461743,696.15,694.45,0.28799769]
[1735518199125,0.26461743,696.14,694.45,0.28799769]
[1735518199425,0.26461743,696.13,694.45,0.28799769]
[1735518199623,0.26461743,696.12,694.45,0.28799769]
[1735518199928,0.26461743,696.11,694.45,0.28799769]
[1735518200228,0.28727377,696.2,694.45,0.28799769]
[1735518200229,0.26461348,696.1,694.45,0.28799769]
[1735518200428,0.26461348,696.09,694.45,0.28799769]
[1735518200728,0.28727377,696.2,694.45,0.28799769]
[1735518200929,0.26461325,696.19,694.45,0.28799769]
[1735518202630,0.26459596,696.18,694.45,0.28799769]
[1735518202930,0.28727377,696.2,694.45,0.28799769]
[1735518204933,0.28727377,696.2,694.45,3.79685665]
[1735518205131,0.28727377,696.2,694.45,6.57684639]
[1735518205435,0.28727377,696.2,694.46,3.50885896]
[1735518205736,0.28727377,696.2,694.46,6.2888487]
[1735518205935,0.28727377,696.2,694.47,3.50885896]
[1735518206136,0.28727377,696.2,694.47,6.2888487]
[1735518206336,0.28727377,696.2,694.48,6.2888487]
[1735518206537,0.28727377,696.2,694.5,1.06391799]
[1735518206831,0.28727377,696.2,694.5,7.35276669]
[1735518207036,0.28727377,696.2,694.51,3.50885896]
[1735518207438,0.28727377,696.2,694.54,1.06391799]
[1735518207831,0.28727377,696.2,694.54,4.57277695]
[1735518208038,0.28727377,696.2,694.55,3.50885896]
[1735518208631,0.28727377,696.2,694.56,2.77998974]
[1735518208837,0.28727377,696.2,694.57,1.84074499]
[1735518209037,0.28727377,696.2,694.57,3.50885896]
[1735518209233,0.28727377,696.2,694.58,2.77998974]
[1735518209434,0.28727377,696.2,694.59,3.50885896]
[1735518209633,1.07265679,696.74,694.59,3.50885896]
[1735518209840,1.07265679,696.81,694.6,2.77998974]
[1735518210137,0.5514906,696.8,694.61,3.50885896]
[1735518210338,0.2644642,696.79,694.62,2.77998974]
[1735518210541,0.2644642,696.78,694.63,3.50885896]
[1735518210840,0.2644642,696.77,694.64,2.77998974]
[1735518211035,0.2644642,696.76,694.65,3.50885896]
[1735518211236,0.2644642,696.75,694.65,3.50885896]
[1735518211543,0.2870264,696.8,694.65,3.50885896]
[1735518211544,0.2644642,696.74,694.66,2.77998974]
[1735518211742,0.2644642,696.73,694.67,3.50885896]
[1735518212043,0.2644642,696.72,694.69,0.28789819]
[1735518212345,0.2870264,696.8,694.69,0.28789819]
[1735518212643,0.26447375,696.79,694.69,6.57674689]
[1735518212837,0.2870264,696.8,694.69,6.57674689]
[1735518212838,0.26447375,696.78,694.7,3.50885896]
[1735518213144,0.26447375,696.77,694.72,0.28788576]
[1735518213444,0.26447375,696.76,694.72,0.28788576]
[1735518213643,0.55152075,696.75,694.72,6.57673446]
[1735518213839,0.55152487,696.74,694.73,3.50885896]
[1735518214041,0.26447375,696.73,694.75,0.28787333]
[1735518214237,0.26447375,696.72,694.75,0.28787333]
[1735518214439,0.26447375,696.71,694.75,3.06786307]
[1735518214640,0.26447375,696.7,694.76,3.50885896]
[1735518214848,0.26447375,696.69,694.78,0.2878609]
[1735518215043,0.26447375,696.68,694.78,0.2878609]
[1735518215243,0.26447375,696.67,694.78,0.2878609]
[1735518215442,0.26447375,696.66,694.78,0.2878609]
[1735518215642,0.55156195,696.65,694.78,2.12860589]
[1735518215945,0.26447375,696.64,694.78,0.2878609]
[1735518216343,0.28709645,696.63,694.78,0.2878609]
[1735518216543,0.26447375,696.62,694.78,0.2878609]
[1735518217347,0.26452893,696.61,694.78,0.2878609]
[1735518217644,0.28709645,696.63,694.78,0.2878609]
[1735518217645,0.26452893,696.6,694.78,0.2878609]
[1735518217840,0.26452893,696.59,694.78,0.2878609]
[1735518218039,0.26452893,696.58,694.78,0.2878609]